Cogmind - Beta 12 @@@ ROGUE MODE // 2024.01.10 @ 19:47:02 Player: sasha Result: Core destroyed Performance ------------- Evolutions (5) 2500 Regions Visited (16) 3200 Robots Destroyed (187) 935 Value Destroyed (6001) 6001 Prototype IDs (24) 480 Alien Tech Used (2) 400 Bonus (201) 201 TOTAL SCORE: 13717 Bonus ------- Follower Combat Kills 37 Met Data Miner 300 Met Zhirov 300 Friendly Fire -436 Cogmind --------- Core Integrity 0/1000 Matter 40/300 Energy 100/100 System Corruption 20% Temperature Cool (0) Movement Flying (34) Location -5/Zhirov Parts ------- > --- POWER (1) -------- (None) > --- PROPULSION (6) --- Xenon Bombardment Thruster Cooled Nuclear Pulse Thruster > --- UTILITY (7) ------ Advanced Weight Redist. System Makeshift ECM Suite > --- WEAPON (3) ------- (None) > --- INVENTORY (5) ---- Medium Storage Unit Improved Matter Compressor (0) Precision Grenade Launcher Long-range Missile Launcher Spear Peak State ------------ > --- POWER ------------ Heavy Antimatter Reactor > --- PROPULSION ------- Cesium-ion Thruster Cesium-ion Thruster Xenon Bombardment Thruster Xenon Bombardment Thruster Xenon Bombardment Thruster > --- UTILITY ---------- Advanced Power Amplifier Huge Storage Unit Advanced Weight Redist. System Advanced Sensor Array Makeshift ECM Suite Improved Core Shielding Advanced Focal Shield > --- WEAPON ----------- Heavy Rocket Launcher Chainsword > --- INVENTORY -------- Angular Momentum Engine Cooled Nuclear Pulse Thruster Cooled Nuclear Pulse Thruster Cooled Nuclear Pulse Thruster Coolant Injector Medium Storage Unit High-capacity Matter Pod Improved Matter Compressor 0b10 Decoder Chip [Generic] Experimental Weapon Shielding Improved Force Field Advanced System Shield Long-range Tractor Beam Gauss Rifle Precision Grenade Launcher Precision Grenade Launcher Long-range Missile Launcher Axe Spear [Rating: 74] Favorites ----------- Power Micro Nuclear Core Engine Improved Deuterium Engine Power Core Micro Nuclear Core Reactor Heavy Antimatter Reactor Propulsion Light Treads Treads Light Treads Leg Aluminum Leg Wheel Armored Wheel Flight Unit Cesium-ion Thruster Utility Huge Storage Unit Device Advanced Sensor Array Storage Huge Storage Unit Processor Improved Melee Analysis Suite Protection Improved Light Armor Plating Weapon Gauss Rifle Energy Gun Arc Projector Energy Cannon Ion Cannon Ballistic Gun Gauss Rifle Ballistic Cannon Flak Cannon Launcher Precision Grenade Launcher Special Weapon Mining Laser Impact Weapon Power Maul Slashing Weapon Makeshift Axe Build | -11 -10 -10 -9 -8 -7 -7 -7 -6 -6 -6 -6 -5 -5 -5 -5 -5 ------- Run | Jun Mat Min Mat Mat Fac Low Low Fac Low Low Dat Pro Fac Upp Upp Zhi Slots Evolved 10 | . . . 2 2 2 . . 2 . . . . 2 . . . Power . | . . . . . . . . . . . . . . . . . Propulsion 4 | . . . . 2 . . . 2 . . . . . . . . Utility 5 | . . . 2 . 1 . . . . . . . 2 . . . Weapon 1 | . . . . . 1 . . . . . . . . . . . Parts Attached 203 | 7 3 3 29 20 46 7 . 12 2 8 . 20 4 8 14 20 Power 17 | 1 . . 3 1 5 . . 2 . 2 . 1 . 1 . 1 Engine 10 | 1 . . 3 1 3 . . 1 . . . . . 1 . . Core 6 | . . . . . 2 . . 1 . 2 . 1 . . . . Reactor 1 | . . . . . . . . . . . . . . . . 1 Propulsion 56 | 2 2 2 9 8 11 2 . 4 . 2 . 4 . 1 3 6 Treads 36 | 2 . 1 8 8 8 1 . 3 . . . 3 . . 2 . Leg 2 | . 2 . . . . . . . . . . . . . . . Wheel 8 | . . 1 1 . 3 . . 1 . 1 . . . . 1 . Hover . | . . . . . . . . . . . . . . . . . Flight 10 | . . . . . . 1 . . . 1 . 1 . 1 . 6 Utility 66 | 2 . 1 12 3 14 2 . 3 . 3 . 5 2 4 6 9 Device 30 | 1 . . 5 1 5 . . 2 . 3 . 1 2 2 2 6 Storage 6 | 1 . 1 2 . . . . . . . . . . . . 2 Processor 6 | . . . . . 3 . . . . . . . . . 3 . Hackware . | . . . . . . . . . . . . . . . . . Protection 24 | . . . 5 2 6 2 . 1 . . . 4 . 2 1 1 Artifact . | . . . . . . . . . . . . . . . . . Weapon 64 | 2 1 . 5 8 16 3 . 3 2 1 . 10 2 2 5 4 Energy Gun 10 | 1 . . . 1 1 . . . . . . 2 . 1 2 2 Energy Cannon 1 | . . . . 1 . . . . . . . . . . . . Ballistic Gun 24 | 1 1 . 4 1 8 3 . 2 . . . 2 1 . 1 . Ballistic Cannon 4 | . . . 1 2 . . . . . . . 1 . . . . Launcher 15 | . . . . 2 2 . . . 1 1 . 4 1 1 2 1 Special Weapon 1 | . . . . . 1 . . . . . . . . . . . Impact Weapon 5 | . . . . 1 3 . . . 1 . . . . . . . Slashing Weapon 4 | . . . . . 1 . . 1 . . . 1 . . . 1 Piercing Weapon . | . . . . . . . . . . . . . . . . . Special Melee Weapon . | . . . . . . . . . . . . . . . . . Unidentified Prototypes 7 | . . . . . 1 . . . . . . . 1 . . 5 Corrupted Parts 1 | . . . . . . . . . . . . . . 1 . . System Corruption 4 | . . . . . . . . . . . . . . 4 . . Parts Lost 92 | . 2 . 9 4 21 . . 2 3 7 . 11 3 7 8 15 Power 11 | . . . 1 1 2 . . 1 . 2 . 1 1 . 1 1 Propulsion 35 | . 1 . 3 2 10 . . 1 1 2 . 5 1 2 2 5 Utility 27 | . . . 3 1 5 . . . . 3 . 2 1 4 3 5 Weapon 19 | . 1 . 2 . 4 . . . 2 . . 3 . 1 2 4 Highest Loss Streak 15 | . 2 . 5 2 6 . . 1 3 4 . 9 2 5 4 15 To Critical Strikes 2 | . . . . 1 . . . . . . . . . . 1 . Average Slot Usage (%) 84 | . 96 100 87 96 90 84 100 90 94 89 80 75 79 59 61 62 Engine 3 | . 14 14 8 7 1 7 7 2 6 1 . . . 1 1 . Core 2 | . . . . . 3 . . 3 . 4 6 5 1 . . . Treads 17 | . 20 2 18 34 24 . 7 11 26 24 20 12 17 10 4 . Wheel 4 | . . 2 2 . 2 15 15 12 7 7 13 6 1 . 4 4 Device 13 | . 14 14 21 9 6 7 7 12 13 19 26 12 17 15 13 15 Storage 7 | . 14 14 11 9 7 7 7 6 6 6 6 6 5 5 5 5 Processor 2 | . . . . . 8 10 7 . . . . . . . 7 11 Protection 10 | . . . 6 17 10 11 15 13 13 5 . 13 17 10 4 6 Energy Gun 1 | . 9 . . 1 1 . . . . . . 4 . 1 4 7 Ballistic Gun 8 | . 17 28 18 5 8 11 15 12 7 4 . 1 5 . . . Launcher 2 | . . . . 2 1 . . . 4 4 . 3 2 5 4 1 Impact Weapon 2 | . . . . . 5 3 . . 4 6 6 1 . . . . Slashing Weapon 2 | . . . . . 1 7 7 6 1 . . 4 5 5 5 5 Naked Turns . | . . . . . . . . . . . . . . . . . Heaviest Build 138 | 12 12 86 98 102 106 129 129 130 128 128 98 132 134 138 117 127 Greatest Support 92 | 40 40 20 52 92 85 22 22 70 22 40 40 40 78 78 27 33 Greatest Overweight (x) 10 | . . 5 5 3 8 5 5 5 10 10 2 5 4 4 6 10 Average Overweight (x) 3 | . . 1 1 1 2 4 5 4 8 6 2 3 1 1 5 5 Largest Inventory Capacity 25 | 8 8 25 25 25 25 25 25 25 25 25 25 25 25 25 25 25 Average Capacity 24 | 7 8 15 22 25 25 25 25 25 25 25 25 25 25 25 25 24 Most Carried 25 | 5 8 9 23 25 25 25 25 25 24 25 23 25 25 25 25 25 Average Carried 22 | 3 6 8 16 23 23 24 25 24 22 23 23 23 23 23 21 22 Final Capacity 25 | 8 8 25 25 25 25 25 25 25 25 25 25 25 25 25 25 5 Final Carried 25 | 4 8 9 22 25 25 25 25 24 23 23 23 25 25 23 24 5 Class Distribution -------------------- 46% | Mutant 33% | Scavenger-Mutant 19% | Derelict-Mutant Dominant Class ---------------- Mutant | -10/Materials Mutant | -10/Mines Mutant | -9/Materials Mutant | -8/Materials Mutant | -7/Factory Mutant | -7/Lower Caves Scavenger-Mutant | -7/Lower Caves Scavenger-Mutant | -6/Factory Scavenger-Mutant | -6/Lower Caves Scavenger-Mutant | -6/Lower Caves Mutant | -6/Data Miner Mutant | -5/Proximity Caves Derelict-Mutant | -5/Factory Derelict-Mutant | -5/Upper Caves Derelict-Mutant | -5/Upper Caves Derelict-Mutant | -5/Zhirov Resources | -11 -10 -10 -9 -8 -7 -7 -7 -6 -6 -6 -6 -5 -5 -5 -5 -5 ----------- Run | Jun Mat Min Mat Mat Fac Low Low Fac Low Low Dat Pro Fac Upp Upp Zhi Matter Collected 4934 | 277 35 38 532 615 1295 87 . 297 122 170 . 365 265 412 424 . Remotely 913 | . . . 366 87 . . . . . . . . . 223 237 . Salvage Created 5626 | 78 253 . 1111 671 1451 174 . 357 89 23 . 579 69 391 380 . Parts 299 | 9 13 . 80 46 65 4 . 25 8 . . 19 5 12 13 . Haulers Intercepted 5 | . 1 . 2 2 . . . . . . . . . . . . Recyclers Shooed 6 | . . . 3 3 . . . . . . . . . . . . Parts Field Recycled 7 | . . . . . . . . . . . . . . 7 . . Retrieved Matter 36 | . . . . . . . . . . . . . . 36 . . Parts Self-Destructed 28 | . . . . . . . . . 5 . . 14 . 5 4 . Prevented . | . . . . . . . . . . . . . . . . . Kills | -11 -10 -10 -9 -8 -7 -7 -7 -6 -6 -6 -6 -5 -5 -5 -5 -5 ------- Run | Jun Mat Min Mat Mat Fac Low Low Fac Low Low Dat Pro Fac Upp Upp Zhi Combat Hostiles Destroyed 139 | . 6 . 26 18 23 1 . 6 6 1 . 19 3 17 13 . Melee 19 | . . . . 2 9 1 . 4 . . . 3 . . . . Guns 44 | . 6 . 26 4 5 . . 2 . . . . . . 1 . Cannons 12 | . . . . 12 . . . . . . . . . . . . AOE 61 | . . . . . 6 . . . 6 1 . 16 3 17 12 . Classes Destroyed 20 | 1 3 . 4 4 3 2 . . . 1 . . 1 1 . . Worker 10 | . . . 1 2 7 . . . . . . . . . . . Builder 7 | . . . . 1 6 . . . . . . . . . . . Tunneler 4 | 3 . . . . 1 . . . . . . . . . . . Hauler 5 | . 1 . 2 2 . . . . . . . . . . . . Recycler 7 | . . . 2 1 4 . . . . . . . . . . . Mechanic 3 | . . . . 1 2 . . . . . . . . . . . Operator 1 | . . . . 1 . . . . . . . . . . . . Drone 1 | . . . . . . . . . . . . . 1 . . . Watcher 9 | . . . 2 3 1 . . 1 . . . . 2 . . . Swarmer 47 | . 3 . 14 8 3 . . . 4 . . 6 . 5 4 . Grunt 50 | . 3 . 8 7 7 . . 1 1 . . 11 . 9 3 . Brawler 1 | . . . . 1 . . . . . . . . . . . . Duelist 1 | . . . . . 1 . . . . . . . . . . . Sentry 15 | . . . 4 2 4 . . 1 1 . . 2 . 1 . . Hunter 5 | . . . . . 2 . . 1 . . . . 2 . . . Programmer 10 | . . . . . 6 . . 3 . . . . . 1 . . Behemoth 1 | . . . . . . . . . . 1 . . . . . . Enhanced Grunt 1 | . . . . . . . . . . . . 1 . . . . Decomposer 2 | . . . . . . 2 . . . . . . . . . . Samaritan 2 | . . . . . . 2 . . . . . . . . . . Thief 1 | . . . . . . 1 . . . . . . . . . . Savage 3 | . . . . . . . . . . . . . . . 3 . Butcher 4 | . . . . . . . . . . . . . . . 4 . Mutant 2 | . . . . . . . . . . . . . . 1 1 . Best Kill Streak 8 | 3 5 . 8 6 5 1 . 2 3 1 . 7 4 6 6 . Combat Bots Only 7 | . 5 . 7 5 4 1 . 1 3 1 . 7 3 6 6 . Max Kills in Single Turn 4 | 1 1 . 1 2 3 1 . 1 3 1 . 4 2 4 4 . Gunslinging . | . . . . . . . . . . . . . . . . . Exploded 4 | . . . . . 2 . . . 3 1 . 3 2 4 3 . Melee 1 | . . . . 1 1 1 . 1 . . . 1 . . . . Uniques/NPCs Destroyed . | . . . . . . . . . . . . . . . . . Combat | -11 -10 -10 -9 -8 -7 -7 -7 -6 -6 -6 -6 -5 -5 -5 -5 -5 -------- Run | Jun Mat Min Mat Mat Fac Low Low Fac Low Low Dat Pro Fac Upp Upp Zhi Damage Taken 14531 | . 373 . 1489 1231 3733 . . 819 315 1121 . 1245 382 1438 916 1469 Core 2323 | . 41 . 280 91 488 . . 67 14 223 . 134 119 159 202 505 Absorbed by Shields . | . . . . . . . . . . . . . . . . . Redirected to Shielding 284 | . . . . . 191 . . . . . . . . . 11 82 Regen/Repaired (Parts) 353 | . . . 136 . 144 . . 73 . . . . . . . . Core Remaining (%) 62 | 100 . 83 30 83 . . 30 . . . . 48 . . . . Volleys Fired 429 | 7 43 . 143 88 55 . . 16 3 4 . 15 9 25 19 2 Largest 2 | 2 2 . 2 2 2 . . 2 1 1 . 1 1 2 2 1 Hottest 100 | 70 70 . 43 100 100 . . 56 45 45 . 45 36 91 96 39 Shots Fired 711 | 14 72 . 255 151 92 2 . 34 3 7 . 14 9 32 22 4 Gun 531 | 14 72 . 255 64 71 2 . 34 . 2 . 2 2 5 6 2 Cannon 84 | . . . . 84 . . . . . . . . . . . . Launcher 87 | . . . . 3 12 . . . 3 5 . 12 7 27 16 2 Special 9 | . . . . . 9 . . . . . . . . . . . Kinetic 537 | 7 53 . 255 110 70 2 . 34 . 2 . 1 2 . 1 . Thermal 76 | 7 19 . . 38 10 . . . . . . . . . . 2 Explosive 87 | . . . . 3 12 . . . 3 5 . 12 7 27 16 2 Electromagnetic 11 | . . . . . . . . . . . . 1 . 5 5 . Robot Hit Streak 15 | 2 9 . 13 9 13 5 . 4 2 14 . 5 3 14 15 6 Robot Miss Streak 14 | 2 3 . 4 14 6 1 . 2 2 1 . 2 1 3 3 . Penetration Max 1 | . . . . . . . . 1 . . . . . . . . Secondary Targets 2 | . 2 . . . . . . . . . . . . . . . Max Gunslinging Chain 1 | . 1 . . . . . . . . . . . . . . . Shots Hit Robots 529 | 5 48 . 154 106 116 7 . 32 1 3 . 18 5 22 9 3 Core Hits 425 | 4 15 . 67 78 47 2 . 15 17 6 . 63 9 46 52 4 Critical Kills . | . . . . . . . . . . . . . . . . . Critical Parts Destroyed 9 | . 2 . . . 6 . . 1 . . . . . . . . Critical Strikes 17 | . 5 . . . 6 . . 3 . . . 3 . . . . Burn 3 | . 3 . . . . . . . . . . . . . . . Destroy 3 | . 2 . . . . . . 1 . . . . . . . . Smash 6 | . . . . . 6 . . . . . . . . . . . Sever 5 | . . . . . . . . 2 . . . 3 . . . . Melee Attacks 244 | . . . . . 106 6 . 75 7 12 . 16 18 3 1 . Impact 92 | . . . . . 73 5 . . 1 12 . 1 . . . . Slashing 152 | . . . . . 33 1 . 75 6 . . 15 18 3 1 . Piercing . | . . . . . . . . . . . . . . . . . Sneak Attacks 18 | . . . . . 12 4 . 2 . . . . . . . . Combat Hostiles . | . . . . . . . . . . . . . . . . . Follow-up Attacks . | . . . . . . . . . . . . . . . . . Damage Inflicted 18576 | 54 469 11 1425 1792 5215 579 . 1028 390 306 . 2552 543 2129 2001 82 Guns 3598 | 54 469 . 1388 516 617 20 . 432 . . . 22 . 12 48 20 Cannons 1048 | . . . . 1048 . . . . . . . . . . . . Explosions 8885 | . . . . 183 1265 . . . 390 306 . 2165 513 2048 1953 62 Melee 4952 | . . . . . 3333 559 . 596 . . . 365 30 69 . . Ramming 93 | . . 11 37 45 . . . . . . . . . . . . Kinetic 4049 | 17 282 . 1388 1271 617 20 . 432 . . . 22 . . . . Thermal 1082 | 37 187 . . 293 545 . . . . . . . . . . 20 Explosive 8317 | . . . . 183 720 . . . 390 306 . 2165 490 2048 1953 62 Electromagnetic 83 | . . . . . . . . . . . . . 23 12 48 . Impact 3068 | . . . . . 2498 529 . . . . . 41 . . . . Slashing 1884 | . . . . . 835 30 . 596 . . . 324 30 69 . . Piercing . | . . . . . . . . . . . . . . . . . Highest Corruption 20 | . . . . . 15 14 14 2 9 17 17 17 9 17 17 20 Average Corruption 12 | . . . . . 11 14 14 1 7 15 17 17 8 11 17 17 Corruption Purged 4 | . . . . . 4 . . . . . . . . . . . Corruption Blocked . | . . . . . . . . . . . . . . . . . Effects 396 | . . . . . 108 27 1 10 24 67 7 48 12 31 42 19 Message Errors 108 | . . . . . 21 6 . 2 8 24 1 8 3 13 17 5 Matter Fused 98 | . . . . . 27 5 . 2 9 20 2 12 2 9 7 3 Heat Flow Errors 40 | . . . . . 15 2 . 2 2 7 1 5 2 2 2 . Energy Discharges 46 | . . . . . 17 4 . . . 3 1 4 1 4 6 6 Parts Rejected 3 | . . . . . 1 . . . . . . . . 1 1 . Parts Fused 4 | . . . . . 2 1 . . . . . 1 . . . . Data Loss (minor) 56 | . . . . . 14 4 1 1 5 8 1 12 1 . 6 3 Data Loss (major) 16 | . . . . . 4 2 . 1 . 1 . 3 3 . 2 . Misfires 18 | . . . . . 6 2 . 2 . 3 . 1 . 1 1 2 Alerts 4 | . . . . . . 1 . . . 1 1 . . 1 . . Weapon Failures 3 | . . . . . 1 . . . . . . 2 . . . . Overload Shots . | . . . . . . . . . . . . . . . . . Overflow Damage 1901 | . . . . . 1246 449 . 51 1 2 . 81 30 7 34 . Projectiles . | . . . . . . . . . . . . . . . . . Explosions 339 | . . . . . 184 . . . 1 2 . 81 30 7 34 . Melee 1562 | . . . . . 1062 449 . 51 . . . . . . . . Knockbacks 59 | . . . . 43 16 . . . . . . . . . . . Impact 15 | . . . . . 15 . . . . . . . . . . . Kinetic 32 | . . . . 32 . . . . . . . . . . . . Secondary 12 | . . . . 11 1 . . . . . . . . . . . Self-Inflicted Damage 1343 | . . . 1 . 255 . . . . 188 . 213 24 391 202 69 Shots 44 | . . . . . 6 . . . . 8 . 5 1 12 10 2 Rammed 11 | . . . 3 8 . . . . . . . . . . . . Targets Rammed 16 | . . 2 4 10 . . . . . . . . . . . . Kicked 2 | . . 2 . . . . . . . . . . . . . . Crushed 3 | . . . 1 2 . . . . . . . . . . . . Highest Temperature 487 | 110 254 . 12 487 272 130 . 188 107 255 209 233 89 261 168 30 Average Temperature 99 | 61 96 . 4 139 86 63 . 51 51 111 119 100 50 65 78 19 Received Heat Transfer 2256 | . 156 . 315 441 588 . . 144 30 24 . 162 . 270 45 81 Effects 13 | . 2 . . 10 1 . . . . . . . . . . . Shutdowns 2 | . . . . 2 . . . . . . . . . . . . Energy Bleed 1 | . . . . 1 . . . . . . . . . . . . Interference 5 | . 2 . . 2 1 . . . . . . . . . . . Matter Decay 1 | . . . . 1 . . . . . . . . . . . . Damage (major) 4 | . . . . 4 . . . . . . . . . . . . Siege Activations . | . . . . . . . . . . . . . . . . . Robots Corrupted . | . . . . . . . . . . . . . . . . . Combat Hostiles . | . . . . . . . . . . . . . . . . . Parts Fried 22 | . . . . . 17 5 . . . . . . . . . . Impact Corruptions 52 | . . . . . 39 13 . . . . . . . . . . Robots Melted . | . . . . . . . . . . . . . . . . . Combat Hostiles . | . . . . . . . . . . . . . . . . . Parts Melted 4 | . 1 . . . 2 . . . . . . 1 . . . . Heat Transferred 1810 | 111 777 . . 585 300 . . . . . . . . . . 37 Parts Sabotaged . | . . . . . . . . . . . . . . . . . Parts Stolen 1 | . . . . . . 1 . . . . . . . . . . Parts Stripped . | . . . . . . . . . . . . . . . . . Power Chain Reactions . | . . . . . . . . . . . . . . . . . Missiles Intercepted . | . . . . . . . . . . . . . . . . . Alert | -11 -10 -10 -9 -8 -7 -7 -7 -6 -6 -6 -6 -5 -5 -5 -5 -5 ------- Run | Jun Mat Min Mat Mat Fac Low Low Fac Low Low Dat Pro Fac Upp Upp Zhi Peak Influence 383 | 15 166 64 383 359 354 . . 69 . . . . 205 . . . Initial 120 | . 9 64 24 120 112 . . . . . . . 16 . . . Average 162 | 7 63 64 253 201 211 . . 31 . . . . 46 . . . Maximum Alert Level 1 | . . . 1 1 1 . . . . . . . 1 . . . Low Security (%) 57 | 100 100 100 19 59 39 . . 100 . . . . 88 . . . Level 1 42 | . . . 80 40 60 . . . . . . . 11 . . . Level 2 . | . . . . . . . . . . . . . . . . . Level 3 . | . . . . . . . . . . . . . . . . . Level 4 . | . . . . . . . . . . . . . . . . . Level 5 . | . . . . . . . . . . . . . . . . . High Security . | . . . . . . . . . . . . . . . . . Max Security . | . . . . . . . . . . . . . . . . . Squads Dispatched 22 | . . . 4 . 8 . . 7 . . . . 3 . . . Investigation 1 | . . . . . . . . . . . . . 1 . . . Extermination 8 | . . . . . 5 . . 2 . . . . 1 . . . Reinforcement 10 | . . . 4 . 3 . . 2 . . . . 1 . . . Assault . | . . . . . . . . . . . . . . . . . Garrison 3 | . . . . . . . . 3 . . . . . . . . Intercept . | . . . . . . . . . . . . . . . . . Searches Triggered . | . . . . . . . . . . . . . . . . . Construction Impeded . | . . . . . . . . . . . . . . . . . Haulers Reinforced 1 | . . . . . . . . 1 . . . . . . . . Active Scanning Responses . | . . . . . . . . . . . . . . . . . Cargo Convoy Interrupts . | . . . . . . . . . . . . . . . . . Stealth | -11 -10 -10 -9 -8 -7 -7 -7 -6 -6 -6 -6 -5 -5 -5 -5 -5 --------- Run | Jun Mat Min Mat Mat Fac Low Low Fac Low Low Dat Pro Fac Upp Upp Zhi Distress Signals 7 | . . . 2 2 2 . . . . . . . 1 . . . Communications Jammed . | . . . . . . . . . . . . . . . . . Distress Signals . | . . . . . . . . . . . . . . . . . Times Spotted 200 | . 8 . 48 34 35 1 . 10 2 1 . 18 8 19 13 3 Peak Tracking Total 7 | . 5 . 6 7 5 1 . 3 3 1 . 7 2 7 6 3 Tactical Retreats 11 | . . . 3 2 1 . . 1 . . . 2 1 1 . . Traps | -11 -10 -10 -9 -8 -7 -7 -7 -6 -6 -6 -6 -5 -5 -5 -5 -5 ------- Run | Jun Mat Min Mat Mat Fac Low Low Fac Low Low Dat Pro Fac Upp Upp Zhi Traps Triggered 7 | . . . 2 2 . . . 3 . . . . . . . . Indirectly . | . . . . . . . . . . . . . . . . . Trap Hack Attempts . | . . . . . . . . . . . . . . . . . Triggered . | . . . . . . . . . . . . . . . . . Disarmed . | . . . . . . . . . . . . . . . . . Reprogrammed . | . . . . . . . . . . . . . . . . . Reused . | . . . . . . . . . . . . . . . . . Traps Extracted . | . . . . . . . . . . . . . . . . . Installed . | . . . . . . . . . . . . . . . . . Triggered . | . . . . . . . . . . . . . . . . . Most Traps Carried 1 | . . . . . . . . . . 1 1 1 1 1 . . Machines | -11 -10 -10 -9 -8 -7 -7 -7 -6 -6 -6 -6 -5 -5 -5 -5 -5 ---------- Run | Jun Mat Min Mat Mat Fac Low Low Fac Low Low Dat Pro Fac Upp Upp Zhi Machines Disabled 16 | . . . . 1 6 . . 1 . . . 4 2 1 . 1 Max in Single Turn 5 | . . . . 1 5 . . 1 . . . 3 2 1 . 1 Machines Repaired . | . . . . . . . . . . . . . . . . . Machines Sabotaged . | . . . . . . . . . . . . . . . . . Overloaded Fab Kills . | . . . . . . . . . . . . . . . . . Hacking | -11 -10 -10 -9 -8 -7 -7 -7 -6 -6 -6 -6 -5 -5 -5 -5 -5 --------- Run | Jun Mat Min Mat Mat Fac Low Low Fac Low Low Dat Pro Fac Upp Upp Zhi Machines Accessed 22 | . . . 1 . 3 1 . 1 . . 4 . 1 1 1 9 Terminals 3 | . . . . . 1 1 . . . . . . . 1 . . Fabricators 1 | . . . . . . . . . . . . . 1 . . . Repair Stations 4 | . . . 1 . 2 . . 1 . . . . . . . . Recycling Units . | . . . . . . . . . . . . . . . . . Scanalyzers . | . . . . . . . . . . . . . . . . . Garrison Access . | . . . . . . . . . . . . . . . . . Total Hacks 95 | . . . 2 . 6 1 . 3 . . 28 . 3 3 1 48 Successful 90 | . . . 2 . 3 1 . 2 . . 28 . 2 3 1 48 Failed 5 | . . . . . 3 . . 1 . . . . 1 . . . Catastrophic . | . . . . . . . . . . . . . . . . . Database Lockouts . | . . . . . . . . . . . . . . . . . Manual 3 | . . . . . . . . . . . 2 . . . 1 . Terminals 6 | . . . . . 2 1 . . . . . . . 3 . . Fabricators 3 | . . . . . . . . . . . . . 3 . . . Repair Stations 9 | . . . 2 . 4 . . 3 . . . . . . . . Recycling Units . | . . . . . . . . . . . . . . . . . Scanalyzers . | . . . . . . . . . . . . . . . . . Garrison Access . | . . . . . . . . . . . . . . . . . Terminal Hacks 82 | . . . . . 1 1 . . . . 28 . . 3 1 48 Record 51 | . . . . . . 1 . . . . 11 . . 3 . 36 Part Schematic 13 | . . . . . . . . . . . 9 . . . . 4 Robot Schematic 5 | . . . . . . . . . . . 5 . . . . . Robot Analysis 4 | . . . . . . . . . . . . . . . . 4 Prototype ID Bank 7 | . . . . . . . . . . . 3 . . . . 4 Open Door 1 | . . . . . . . . . . . . . . . 1 . Open DSF 1 | . . . . . 1 . . . . . . . . . . . Fabricator Hacks 2 | . . . . . . . . . . . . . 2 . . . Load Schematic 1 | . . . . . . . . . . . . . 1 . . . Build 1 | . . . . . . . . . . . . . 1 . . . Repair Station Hacks 6 | . . . 2 . 2 . . 2 . . . . . . . . Scan Component 3 | . . . 1 . 1 . . 1 . . . . . . . . Repair 3 | . . . 1 . 1 . . 1 . . . . . . . . Recycling Unit Hacks . | . . . . . . . . . . . . . . . . . Scanalyzer . | . . . . . . . . . . . . . . . . . Garrison Access Hacks . | . . . . . . . . . . . . . . . . . Unauthorized Hacks . | . . . . . . . . . . . . . . . . . Terminals . | . . . . . . . . . . . . . . . . . Fabricators . | . . . . . . . . . . . . . . . . . Repair Stations . | . . . . . . . . . . . . . . . . . Recycling Units . | . . . . . . . . . . . . . . . . . Scanalyzers . | . . . . . . . . . . . . . . . . . Garrison Access . | . . . . . . . . . . . . . . . . . Data Cores Recovered 1 | . . . . 1 . . . . . . . . . . . . Used . | . . . . . . . . . . . . . . . . . Hacking Detections 6 | . . . 1 . 3 . . . . . . . 1 1 . . Full Trace Events 2 | . . . . . . . . . . . . . 1 1 . . Feedback Events . | . . . . . . . . . . . . . . . . . Feedback Blocked . | . . . . . . . . . . . . . . . . . Robot Schematics Acquired 5 | . . . . . . . . . . . 5 . . . . . Robots Built 3 | . . . . . . . . . . . . . 3 . . . Authchips . | . . . . . . . . . . . . . . . . . Time 134 | . . . . . . . . . . . . . 134 . . . Total Robot Build Rating 12 | . . . . . . . . . . . . . 12 . . . Part Schematics Acquired 13 | . . . . . . . . . . . 9 . . . . 4 Parts Built . | . . . . . . . . . . . . . . . . . Authchips . | . . . . . . . . . . . . . . . . . Time . | . . . . . . . . . . . . . . . . . Total Part Build Rating . | . . . . . . . . . . . . . . . . . Parts Repaired 3 | . . . 1 . 1 . . 1 . . . . . . . . Time 83 | . . . 32 . 19 . . 32 . . . . . . . . Parts Recycled . | . . . . . . . . . . . . . . . . . Recycled Matter . | . . . . . . . . . . . . . . . . . Retrieved Matter . | . . . . . . . . . . . . . . . . . Retrieved Components . | . . . . . . . . . . . . . . . . . Parts Scanalyzed . | . . . . . . . . . . . . . . . . . Part Schematics Acquired . | . . . . . . . . . . . . . . . . . Parts Damaged . | . . . . . . . . . . . . . . . . . Bothacking | -11 -10 -10 -9 -8 -7 -7 -7 -6 -6 -6 -6 -5 -5 -5 -5 -5 ------------ Run | Jun Mat Min Mat Mat Fac Low Low Fac Low Low Dat Pro Fac Upp Upp Zhi Used RIF Installer . | . . . . . . . . . . . . . . . . . Robots Hacked . | . . . . . . . . . . . . . . . . . Non-combat . | . . . . . . . . . . . . . . . . . Combat . | . . . . . . . . . . . . . . . . . Robot Hacks Applied . | . . . . . . . . . . . . . . . . . Relay Couplers Released . | . . . . . . . . . . . . . . . . . Fabnet Peak Effective % . | . . . . . . . . . . . . . . . . . Robots Rewired . | . . . . . . . . . . . . . . . . . Allies Hacked . | . . . . . . . . . . . . . . . . . Hacks Repelled . | . . . . . . . . . . . . . . . . . Allies | -11 -10 -10 -9 -8 -7 -7 -7 -6 -6 -6 -6 -5 -5 -5 -5 -5 -------- Run | Jun Mat Min Mat Mat Fac Low Low Fac Low Low Dat Pro Fac Upp Upp Zhi Total Allies 4 | . . . . . . . . . . . . 1 3 . . . Largest Group 3 | . . . . . . . . . . . . 1 3 . . . Highest-Rated Group 96 | . . . . . . . . . . . . 96 86 . . . Highest-Rated Ally 96 | . . . . . . . . . . . . 96 30 . . . Total Orders . | . . . . . . . . . . . . . . . . . Ally Attacks 5 | . . . . . . . . . . . . 5 . . . . Total Damage 147 | . . . . . . . . . . . . 147 . . . . Kills 1 | . . . . . . . . . . . . 1 . . . . Allies Corrupted . | . . . . . . . . . . . . . . . . . Allies Melted . | . . . . . . . . . . . . . . . . . Intel | -11 -10 -10 -9 -8 -7 -7 -7 -6 -6 -6 -6 -5 -5 -5 -5 -5 ------- Run | Jun Mat Min Mat Mat Fac Low Low Fac Low Low Dat Pro Fac Upp Upp Zhi Robot Analysis Total 4 | . . . . . . . . . . . . . . . . 4 Derelict Logs Recovered 7 | . . . . . . 2 . . 1 . . 2 . 2 . . Drone Launches . | . . . . . . . . . . . . . . . . . Drone Recoveries . | . . . . . . . . . . . . . . . . . Exploration | -11 -10 -10 -9 -8 -7 -7 -7 -6 -6 -6 -6 -5 -5 -5 -5 -5 ------------- Run | Jun Mat Min Mat Mat Fac Low Low Fac Low Low Dat Pro Fac Upp Upp Zhi Turns Passed 16244 | 115 399 192 1950 1206 3205 634 12 1798 709 1609 153 1107 616 1185 917 437 Spaces Moved 6121 | 60 178 117 612 353 1065 395 8 832 314 337 123 586 178 332 415 216 Core 22 | 14 . . 8 . . . . . . . . . . . . . Treads 2298 | 46 135 . 490 353 712 . . 47 . . . 19 142 332 22 . Legs 144 | . 43 101 . . . . . . . . . . . . . . Wheels 3650 | . . 16 114 . 353 395 8 785 314 337 123 567 36 . 393 209 Hover . | . . . . . . . . . . . . . . . . . Flight 7 | . . . . . . . . . . . . . . . . 7 Fastest Speed 29 | 50 120 120 160 235 145 145 160 160 160 125 125 125 160 243 175 29 Average Speed 198 | 134 150 158 205 239 219 152 160 176 216 188 125 166 226 316 200 179 Slowest Speed 560 | 160 160 400 400 400 240 160 160 480 240 240 125 560 243 490 490 260 Overloaded Moves . | . . . . . . . . . . . . . . . . . Propulsion Burnouts . | . . . . . . . . . . . . . . . . . Robots Hopped . | . . . . . . . . . . . . . . . . . Cave-ins Triggered 6 | . . . . . 2 . . . 1 2 . . 1 . . . Teleports 1 | . . . . . . . . . . . . . . . . 1 Exploration Rate (%) 42 | 3 37 25 64 34 28 61 7 29 54 44 75 76 8 54 54 68 Regions Visited 16 Branch Regions 10 Pre-discovered Areas 5 | . . . . . . 1 . . . . 1 . . . . 3 Known Exits Taken 2 | . . . . . . . . . . . . 1 . 1 . . Unknown Exits Taken 14 | 1 1 1 1 1 1 1 1 1 1 1 1 . 1 . 1 . Scrap Searched 18 | . . 1 . . . 3 . . 1 3 . 4 . 3 3 . Spaces Dug 157 | . . . . . 37 . . 57 7 12 . 26 17 . 1 . Terrain Destroyed 734 | . . . . 25 113 . . 58 49 98 . 107 46 126 112 . Melee 130 | . . . . . 37 . . 56 7 12 . . 17 . 1 . Projectile 4 | . . . . . 1 . . 2 . 1 . . . . . . AOE 600 | . . . . 25 75 . . . 42 85 . 107 29 126 111 . Terrain Rammed . | . . . . . . . . . . . . . . . . . Walls Destroyed . | . . . . . . . . . . . . . . . . . Machines Disabled . | . . . . . . . . . . . . . . . . . Actions | -11 -10 -10 -9 -8 -7 -7 -7 -6 -6 -6 -6 -5 -5 -5 -5 -5 --------- Run | Jun Mat Min Mat Mat Fac Low Low Fac Low Low Dat Pro Fac Upp Upp Zhi Total 9153 | 80 248 123 1094 550 1663 417 7 1016 326 1281 122 682 367 435 479 263 Wait 1854 | . 18 . 249 51 336 2 . 47 . 911 . 22 152 56 10 . Move 6102 | 59 177 116 611 352 1063 394 7 831 313 335 122 585 176 331 414 216 Hop . | . . . . . . . . . . . . . . . . . Pick Up 180 | 7 6 1 40 17 35 4 . 11 1 6 . 17 4 7 16 8 Fast Attach 34 | 4 . . 5 5 7 2 . 6 . . . 1 . 1 . 3 Attach 119 | 3 3 . 15 8 26 3 . 3 2 8 . 14 3 6 12 13 Detach 11 | . 1 . . . 2 . . . . 3 . 3 . . 1 1 Swap 52 | . . 3 9 7 13 2 . 3 . . . 5 1 1 2 6 Drop 91 | . . 1 18 12 19 3 . 16 . 1 . 4 3 5 4 5 Fire 429 | 7 43 . 143 88 55 . . 16 3 4 . 15 9 25 19 2 Melee 244 | . . . . . 106 6 . 75 7 12 . 16 18 3 1 . Ram 2 | . . . 2 . . . . . . . . . . . . . Kick 2 | . . 2 . . . . . . . . . . . . . . Crush 12 | . . . 2 10 . . . . . . . . . . . . Escape Stasis 20 | . . . . . 1 . . 8 . 1 . . 1 . . 9 Rewire 1 | . . . . . . 1 . . . . . . . . . . Trap . | . . . . . . . . . . . . . . . . . Miscellaneous . | . . . . . . . . . . . . . . . . . Route ------- -11/Junkyard -10/Materials (discovered 2 exits: [*Min x2]) -10/Mines -9/Materials (discovered 2 exits: [*Mat x2]) -8/Materials -7/Factory (discovered 2 exits: *Fac / *Low) -7/Lower Caves -7/Lower Caves -6/Factory (discovered 2 exits: Fac / [*Low]) -6/Lower Caves -6/Lower Caves -6/Data Miner -5/Proximity Caves -5/Factory -5/Upper Caves -5/Upper Caves -5/Zhirov (discovered 1 exit: [*Pro]) History --------- Turn | Location | Event 15 | -11/Junkyard | Discovered new exit (range 15) 116 | -11/Junkyard | Entered Materials 230 | -10/Materials | Discovered new exit (range 4) 307 | -10/Materials | Build established: Mutant 468 | -10/Materials | Discovered new exit (range 13) 515 | -10/Materials | Entered Mines 629 | -10/Mines | Discovered new exit (range 10) 646 | -10/Mines | Assembled infested the area 707 | -10/Mines | Entered Materials 707 | -9/Materials | Evolved 2 slots: Utility x2 838 | -9/Materials | Destroyed 7 combat bots 936 | -9/Materials | Lost 5 parts (1p2n1u1w) 1501 | -9/Materials | Core integrity fell below 50% 1588 | -9/Materials | Discovered new exit (range 13) 1681 | -9/Materials | Repaired Imp. Treads 2464 | -9/Materials | Discovered new exit (range 12) 2657 | -9/Materials | Entered another Materials area 2657 | -8/Materials | Evolved 2 slots: Propulsion x2 3759 | -8/Materials | Discovered new exit (range 16) 3863 | -8/Materials | Entered Factory 3863 | -7/Factory | Evolved 2 slots: Utility x1, Weapon x1 4167 | -7/Factory | Crushed by falling debris 4172 | -7/Factory | Crushed by falling debris 4616 | -7/Factory | Build established: Scavenger-Mutant 4700 | -7/Factory | Repaired Adv. Treads 4791 | -7/Factory | Discovered new exit (range 6) 4818 | -7/Factory | Found Prototype Launcher 4818 | -7/Factory | Identified Rocket Array 4938 | -7/Factory | System corruption reached 10% 5250 | -7/Factory | Lost 6 parts (1p2n1u2w) 5493 | -7/Factory | Build established: Mutant 6174 | -7/Factory | Core integrity fell below 50% 6946 | -7/Factory | Discovered new exit (range 10) 7068 | -7/Factory | Entered Lower Caves 7451 | -7/Lower Caves | Encountered a Warlord checkpoint 7583 | -7/Lower Caves | Discovered new exit (range 15) 7616 | -7/Lower Caves | Learned location of 1 exit from Factory 7702 | -7/Lower Caves | Entered another Lower Caves area 7702 | -7/Lower Caves | Discovered new exit (range 7) 7714 | -7/Lower Caves | Entered Factory 7714 | -6/Factory | Evolved 2 slots: Propulsion x2 7715 | -6/Factory | Identified exit to Factory 7966 | -6/Factory | Build established: Scavenger-Mutant 7993 | -6/Factory | Repaired Arm. Wheel 8150 | -6/Factory | Garrison activated, responded to threat 9461 | -6/Factory | Discovered new exit (range 8) 9512 | -6/Factory | Entered Lower Caves 9676 | -6/Lower Caves | Crushed by falling debris 9705 | -6/Lower Caves | Attracted the attention of an 0b10 checkpoint 9707 | -6/Lower Caves | Lost 3 parts (1n2w) 10105 | -6/Lower Caves | Discovered new exit (range 7) 10132 | -6/Lower Caves | Encountered a Warlord checkpoint 10133 | -6/Lower Caves | Learned Factory terminal intel 10221 | -6/Lower Caves | Entered another Lower Caves area 10514 | -6/Lower Caves | Crushed by falling debris 10514 | -6/Lower Caves | System corruption reached 10% 10529 | -6/Lower Caves | Crushed by falling debris 10560 | -6/Lower Caves | Lost 3 parts (1p1n1u) 11097 | -6/Lower Caves | Spotted B-75 Beast 11482 | -6/Lower Caves | Destroyed B-75 Beast 11506 | -6/Lower Caves | Lost 4 parts (1p1n2u) 11761 | -6/Lower Caves | Build established: Mutant 11819 | -6/Lower Caves | Discovered new exit (range 6) 11830 | -6/Lower Caves | Entered Data Miner 11830 | -6/Data Miner | Discovered new exit (range 6) 11854 | -6/Data Miner | Met Data Miner 11892 | -6/Data Miner | Learned location of Section 7 (-2) 11892 | -6/Data Miner | Acquired the access code to Warlord's prototype stash 11914 | -6/Data Miner | Received God Mode back door access code from Data Miner 11983 | -6/Data Miner | Entered Proximity Caves 12024 | -5/Proximity Caves | Escorted by Enhanced Grunt 12299 | -5/Proximity Caves | Attracted the attention of an 0b10 base 12314 | -5/Proximity Caves | Core integrity fell below 50% 12358 | -5/Proximity Caves | Lost 9 parts (1p4n2u2w) 12370 | -5/Proximity Caves | Destroyed 7 combat bots 12702 | -5/Proximity Caves | Attracted the attention of an 0b10 checkpoint 12876 | -5/Proximity Caves | Spotted B-75 Beast 12904 | -5/Proximity Caves | Learned Factory interactive machine intel 12957 | -5/Proximity Caves | Discovered exit to Factory (range 12) 12968 | -5/Proximity Caves | Learned Factory stockpile data 13090 | -5/Proximity Caves | Entered Factory 13090 | -5/Factory | Evolved 2 slots: Utility x2 13092 | -5/Factory | Loaded intel: 52 interactive machine locations 13093 | -5/Factory | Loaded intel: 26 terminal locations 13253 | -5/Factory | Crushed by falling debris 13286 | -5/Factory | Build established: Derelict-Mutant 13656 | -5/Factory | Discovered new exit (range 4) 13703 | -5/Factory | Fabricated L-41 Fighter? 13706 | -5/Factory | Entered Upper Caves 13912 | -5/Upper Caves | Spotted B-75 Beast 13988 | -5/Upper Caves | Identified exit to Upper Caves 14035 | -5/Upper Caves | Attracted the attention of an 0b10 base 14115 | -5/Upper Caves | Lost 5 parts (1n3u1w) 14505 | -5/Upper Caves | System corruption reached 10% 14649 | -5/Upper Caves | Learned Factory stockpile data 14891 | -5/Upper Caves | Entered another Upper Caves area 14929 | -5/Upper Caves | Attacked by a faux Warlord 14962 | -5/Upper Caves | Lost 4 parts (3u1w) 15603 | -5/Upper Caves | Discovered new exit (range 14) 15808 | -5/Upper Caves | Entered Zhirov 15808 | -5/Zhirov | Discovered new exit (range 3) 15840 | -5/Zhirov | Met Zhirov 15882 | -5/Zhirov | Learned location of Quarantine (-2) 15882 | -5/Zhirov | Learned location of Testing (-3) 15882 | -5/Zhirov | Learned location of Command (-1) 15919 | -5/Zhirov | Zhirov requested help retrieving the SGEMP Prototype 15947 | -5/Zhirov | Found Alien Artifact 15949 | -5/Zhirov | Identified Transdimensional Reconstructor 15949 | -5/Zhirov | Warped through subspace 15950 | -5/Zhirov | Core integrity fell below 50% 16061 | -5/Zhirov | Found Alien Artifact 16068 | -5/Zhirov | Identified Integrated Reactor 16068 | -5/Zhirov | Installed Integrated Reactor, increased core energy generation (+10) 16219 | -5/Zhirov | Attacked by Zhirov 16241 | -5/Zhirov | Zhirov warped through subspace 16245 | -5/Zhirov | Zhirov detonated his lab 16245 | -5/Zhirov | Cloak Generator disabled 16245 | -5/Zhirov | Core destroyed Last Messages --------------- 16236_ Imp. Core Shielding destroyed. 16236_ Held in stasis. 16239_ Svarog warps through subspace. 16239_ Adv. Focal Shield destroyed. 16240_ Perun warps through subspace. 16240_ Held in stasis. 16241_ Zhirov warps through subspace. 16243_ Acquired Huge Storage Unit. 16244_ 5Z5I>BMEF3DVP8TU8JAP6 16245_ Zhirov's Terminal disabled. 16245_ Machine disabled. 16245_ Zhirov's Terminal disabled. 16245_ Xenon Bombardment Thruster destroyed. 16245_ Adv. Sensor Array destroyed. 16245_ Chainsword destroyed. 16245_ Adv. Power Amplifier destroyed. Map ----- +----------------------------------------------------+ | | | | | | | | | | | | | | | | | | | ??????????????????????????????????????????? | | ??????????????????????????????????????????? | | ??????????????????????????????????????????? | | ???????????#########??????????????????????? | | ????????? #####?????????????????? | | ??????? ??????????????????? | | ??????? ??????????????????? | | ?????? ???????????????????? | | ?????? ???????????????????? | | ?????# ?????#""#???????????? | | ?????# ?#####""##??????????? | | ?????# ## ##""""##?????????? | | ????# """""#??????#### | | ?????# """" #?????## | | ????##### ##?#### < | | ????# ### | | ????# @ | | ????# | | ????# ###### | | ????##### ##????##### | | ????????# # # """" #?????????? | | ????##### #""""""#?????????? | | ????# + #""""##?????????? | | ????# ## # # ##""##??????????? | | ????#XXX##? # #####""#???????????? | | ????#####?##### ######?????"????????????? | | ???????######## ########?????????????????? | | ???????#"X # # """"#?????????????????? | | ???????#" # # """"#?????????????????? | | ???????#"" # # """#?????????????????? | | ???????#"" + + ""#?????????????????? | | ???????#"" ""# # """#?????????????????? | | ???????#"""""# # """"#?????????????????? | | ???????#"""""# #X""""#?????????????????? | | ???????########++########?????????????????? | | ???????#" """"#?????????????????? | | ???????#"" "#?????????????????? | | ???????#" " " " !" "#?????????????????? | | ???????# " " " /" "#?????????????????? | | ???????# " " " " "#?????????????????? | | ???????##################?????????????????? | +----------------------------------------------------+ Best States ------------- Heat Dissipation 40 Coolant Potential 65 Energy Generation 41 Energy Capacity 340 Matter Stores 300 Matter Capacity 600 Sight Range 16 Robot Scan Range 16 Terrain Scan Range 20 Terrain Scan Density 10 ECM Strength 2 Power Amplification 30 Additional Mass Support 9 Armor Coverage 600 Resistance: KI 30 Resistance: TH 10 Resistance: EX 50 Core Shielding 30 Power Shielding 66 Propulsion Shielding 66 Melee Speed Boost 20 Evasion (%) 55 Targeting Accuracy 11 Melee Accuracy 12 Armor Integrity Analysis 40 Recoil Reduction 4 Item Schematics ----------------- Combat Drone Bay | -6/Data Miner | Free Lgt. Regenerative Plating | -6/Data Miner | Free Enh. Flexi-carbon Leg | -6/Data Miner | Free Imp. Thermal Defense Suite | -6/Data Miner | Free Imp. KE Penetrator | -6/Data Miner | Free Centrium Wheel | -6/Data Miner | Free Imp. Cloaking Device | -6/Data Miner | Free HERF Cannon | -6/Data Miner | Free Imp. Powered Armor | -6/Data Miner | Free Assault Drone Bay | -5/Zhirov | Free Exp. Optical Array | -5/Zhirov | Free Exp. Heat Sink | -5/Zhirov | Free Imp. Arc Thrower | -5/Zhirov | Free Robot Schematics ------------------ B-60 Warrior | -6/Data Miner | Free G-50 Soldier | -6/Data Miner | Free B-48 Gladiator | -6/Data Miner | Free L-41 Fighter | -6/Data Miner | Free R-10 Processor | -6/Data Miner | Free Fabricated ------------ L-41 Fighter | x3 | -5/Factory Alien Tech Used ----------------- Transdimensional Reconstructor Integrated Reactor Achievements -------------- Alien Tech Batter Up Explorer Subspace Traveler Challenges ------------ None Game ------ Seed MediumVortexThermoblaster Manual? 0 Play Time 02:07:24 Cumulative 72.5 hours Start 2024.01.10 @ 17:29:04 End 2024.01.10 @ 19:47:02 Sessions 1 Manual Loads 0 Difficulty Rogue Special Mode None Game No. 84 Rogue 84 Adventurer 0 Explorer 0 Win Type - Total 0 Types 0/0/0/0/0/0/0/0/0 Lore% 32 Gallery% 42 Achievement% 34 Wizard Run 0 Options --------- ASCII 0 Keyboard 0 Movement Mouse Keybinds 0 Fullscreen 2 Font 24/Smallcaps Map View 76x50 Tactical HUD 1 Map Filters NONE Filters NONE Steam 1 RUN: 7e46f98c-8977-4640-8c3d-b007bdcafd3d